Cogmind - Beta 17 @@@ ROGUE MODE // 2026.08.13 @ 19:30:47 Player: Boatmurdered Result: Destroyed by FV-5G7(R) with Subdweller Laser Performance ------------- Evolutions (0) 0 Regions Visited (2) 400 Robots Destroyed (19) 95 Value Destroyed (360) 360 Prototype IDs (0) 0 Alien Tech Used (0) 0 Bonus (0) 0 TOTAL SCORE: 855 Bonus ------- None Cogmind --------- Core Integrity 0/250 Matter 286/300 Energy 99/100 System Corruption 2% Temperature Cool (6) Movement Core (400) Ox7 Location -10/Subcaves Parts ------- > --- POWER (1) -------- (None) > --- PROPULSION (2) --- (None) > --- UTILITY (2) ------ Large Storage Unit > --- WEAPON (2) ------- Mining Claw > --- INVENTORY (15) --- Ion Engine Signal Interpreter Improved Terrain Scanner Seismic Detector Seismic Detector Light Armor Plating Hacking Suite Assault Rifle Assault Rifle Assault Rifle Peak State ------------ > --- POWER ------------ Ion Engine > --- PROPULSION ------- Light Treads Light Treads > --- UTILITY ---------- Small Storage Unit Visual Processing Unit > --- WEAPON ----------- Assault Rifle Assault Rifle > --- INVENTORY -------- Light Ion Engine Compact Wheel Improved Terrain Scanner Seismic Detector Seismic Detector Medium Laser Datajack Mining Laser [Rating: 9] Favorites ----------- Power Ion Engine Engine Ion Engine Propulsion Light Treads Treads Light Treads Utility Visual Processing Unit Device Seismic Detector Storage Small Storage Unit Processor Visual Processing Unit Protection Light Armor Plating Weapon Assault Rifle Energy Gun Medium Laser Ballistic Gun Assault Rifle Launcher Grenade Launcher Special Weapon Mining Laser Slashing Weapon Mining Claw Build | -11 -10 -10 ------- Run | Yrd Mat Sub Slots Evolved . | . . . Power . | . . . Propulsion . | . . . Utility . | . . . Weapon . | . . . Parts Attached 19 | 8 8 3 Power 3 | 2 1 . Engine 3 | 2 1 . Core . | . . . Reactor . | . . . Propulsion 2 | 2 . . Treads 2 | 2 . . Leg . | . . . Wheel . | . . . Hover . | . . . Flight . | . . . Utility 7 | 2 3 2 Device 2 | 1 . 1 Storage 3 | 1 2 . Processor 1 | . 1 . Hackware . | . . . Protection 1 | . . 1 Artifact . | . . . Weapon 7 | 2 4 1 Energy Gun 1 | 1 . . Energy Cannon . | . . . Ballistic Gun 3 | 1 2 . Ballistic Cannon . | . . . Launcher 1 | . . 1 Special Weapon 1 | . 1 . Impact Weapon . | . . . Slashing Weapon 1 | . 1 . Piercing Weapon . | . . . Special Melee Weapon . | . . . Unidentified Prototypes . | . . . Parts Lost 5 | . . 5 Power 1 | . . 1 Propulsion 2 | . . 2 Utility 1 | . . 1 Weapon 1 | . . 1 Highest Loss Streak 5 | . . 5 To Critical Strikes 1 | . . 1 Average Backups 7 | 2 8 10 Power . | . 1 1 Propulsion . | . . . Utility 4 | . 4 6 Weapon 2 | . 2 3 Tool/Special . | . . . Unused Backups 9 | . 4 5 Power 1 | . . 1 Propulsion 1 | . 1 . Utility 5 | . 1 4 Weapon 1 | . 1 . Tool/Special 1 | . 1 . Average Slot Usage (%) 99 | . 100 94 Engine 14 | . 14 14 Treads 27 | . 28 23 Device 3 | . 3 11 Storage 14 | . 14 14 Processor 10 | . 10 1 Energy Gun 1 | . 1 . Ballistic Gun 25 | . 26 11 Launcher 1 | . . 13 Peak Build Rating 9 | 8 9 9 Average Rating 8 | 5 8 7 On Entrance 5 | . 8 9 Avg Prop Armor Cover (%) . | . . . Naked Turns . | . . . Heaviest Build 31 | 15 27 31 Greatest Support 40 | 40 40 40 Greatest Overweight (x) 10 | 1 . 10 Average Overweight (x) . | . . . Largest Inventory Capacity 15 | 8 15 15 Average Capacity 9 | 7 9 15 Most Carried 11 | 6 11 11 Average Carried 7 | 2 8 10 Final Capacity 15 | 8 15 15 Final Carried 11 | 6 11 10 Class Distribution -------------------- 100% | Mutant Dominant Class ---------------- Mutant | -10/Materials Mutant | -10/Subcaves Resources | -11 -10 -10 ----------- Run | Yrd Mat Sub Matter Collected 656 | 237 381 38 Remotely . | . . . Salvage Created 639 | 140 499 . Parts 47 | 20 27 . Haulers Intercepted 1 | . 1 . Recyclers Shooed 1 | 1 . . Parts Field Recycled . | . . . Retrieved Matter . | . . . Parts Self-Destructed . | . . . Prevented . | . . . Parts Restored . | . . . Kills | -11 -10 -10 ------- Run | Yrd Mat Sub Combat Hostiles Destroyed 9 | . 9 . Guns 9 | . 9 . Classes Destroyed 7 | 2 5 . Tunneler 4 | 4 . . Hauler 1 | . 1 . Recycler 2 | 1 1 . Operator 1 | . 1 . Watcher 2 | . 2 . Swarmer 3 | . 3 . Grunt 6 | . 6 . Best Kill Streak 2 | 2 2 . Combat Bots Only 2 | . 2 . Max Kills in Single Turn 2 | 1 2 . Gunslinging 1 | . 1 . Exploded . | . . . Melee . | . . . Uniques/NPCs Destroyed . | . . . Combat | -11 -10 -10 -------- Run | Yrd Mat Sub Hostile Shots Fired 71 | . 43 28 Missed 11 | . 9 2 Hits 60 | . 34 26 Projectile 60 | . 34 26 Critical Strikes 1 | . . 1 Damage Taken 1049 | . 427 622 Core 270 | . 80 190 Absorbed by Shields . | . . . Core Remaining (%) 100 | 100 . . Volleys Fired 55 | 8 47 . Largest 2 | 2 2 . Hottest 100 | 70 100 . Shots Fired 102 | 16 86 . Gun 98 | 16 82 . Cannon . | . . . Launcher . | . . . Special 4 | . 4 . Kinetic 88 | 8 80 . Thermal 14 | 8 6 . Explosive . | . . . Electromagnetic . | . . . Robot Hit Streak 14 | 3 14 . Robot Miss Streak 5 | 2 5 . Penetration Max . | . . . Secondary Targets 1 | . 1 . Max Gunslinging Chain 1 | . 1 . Shots Hit Robots 63 | 9 49 5 Core Hits 29 | 6 23 . Critical Kills . | . . . Critical Parts Destroyed . | . . . Critical Strikes . | . . . Melee Attacks 9 | . 2 7 Impact . | . . . Slashing 9 | . 2 7 Piercing . | . . . Sneak Attacks . | . . . Combat Hostiles . | . . . Follow-up Attacks . | . . . Damage Inflicted 811 | 112 603 96 Guns 715 | 112 603 . Cannons . | . . . Explosions . | . . . Melee 96 | . . 96 Ramming . | . . . Kinetic 629 | 38 591 . Thermal 86 | 74 12 . Explosive . | . . . Electromagnetic . | . . . Impact . | . . . Slashing 96 | . . 96 Piercing . | . . . Highest Corruption 2 | . 2 2 Average Corruption 2 | . 2 2 Corruption Purged . | . . . Corruption Blocked . | . . . Effects 10 | . 10 . Message Errors 2 | . 2 . Matter Fused 3 | . 3 . Heat Flow Errors 2 | . 2 . Data Loss (minor) 1 | . 1 . Data Loss (major) 2 | . 2 . Overload Shots . | . . . Overflow Damage . | . . . Projectiles . | . . . Explosions . | . . . Melee . | . . . Knockbacks . | . . . Impact . | . . . Kinetic . | . . . Secondary . | . . . Self-Inflicted Damage . | . . . Shots . | . . . Rammed 1 | . 1 . Targets Rammed 1 | . 1 . Kicked . | . . . Crushed . | . . . Highest Temperature 247 | 18 247 . Average Temperature 34 | 9 44 . Received Heat Transfer 396 | . 198 198 Siege Activations . | . . . Martial Activations . | . . . Shielding Activations . | . . . Robots Disrupted . | . . . Combat Hostiles . | . . . Robots Corrupted . | . . . Combat Hostiles . | . . . Parts Fried . | . . . Impact Corruptions . | . . . Robots Melted . | . . . Combat Hostiles . | . . . Parts Melted . | . . . Heat Transferred 259 | 222 37 . Parts Sabotaged . | . . . Parts Stolen . | . . . Parts Stripped . | . . . Power Chain Reactions . | . . . Alert | -11 -10 -10 ------- Run | Yrd Mat Sub Maximum Alert Level . | . . . Low Security (%) 100 | 100 100 . Level 1 . | . . . Level 2 . | . . . Level 3 . | . . . Level 4 . | . . . Level 5 . | . . . High Security . | . . . Max Security . | . . . Peak Influence 92 | 5 92 . Initial . | . . . Average 16 | 1 17 . Influence Increases 343 | 25 318 . Destroy 0b10 Robot/C 180 | . 180 . Destroy 0b10 Robot/NC 50 | 25 25 . Destroy Leader 46 | . 46 . Successful Hack 30 | . 30 . Disable Machine 15 | . 15 . Destroy Structure 7 | . 7 . Lose Combat Pursuer 15 | . 15 . Influence Decreases 343 | 25 318 . Time Decay 343 | 25 318 . Squads Dispatched 1 | . 1 . Investigation . | . . . Extermination . | . . . Reinforcement 1 | . 1 . Assault . | . . . Garrison . | . . . Intercept . | . . . Searches Triggered . | . . . Construction Impeded . | . . . Haulers Reinforced . | . . . Active Scanning Responses . | . . . Cargo Convoy Interrupts . | . . . Stealth | -11 -10 -10 --------- Run | Yrd Mat Sub Distress Signals 1 | . 1 . Communications Jammed . | . . . Distress Signals . | . . . Times Spotted 27 | . 24 3 Peak Tracking Total 3 | . 3 3 Tactical Retreats 1 | . 1 . Traps | -11 -10 -10 ------- Run | Yrd Mat Sub Traps Triggered 1 | . 1 . Indirectly . | . . . Trap Hack Attempts . | . . . Triggered . | . . . Disarmed . | . . . Reprogrammed . | . . . Reused . | . . . Traps Extracted . | . . . Installed . | . . . Triggered . | . . . Machines | -11 -10 -10 ---------- Run | Yrd Mat Sub Machines Disabled 1 | . 1 . Max in Single Turn 1 | . 1 . Machines Repaired . | . . . Machines Dismantled . | . . . Machines Sabotaged . | . . . Overloaded Fab Kills . | . . . Hacking | -11 -10 -10 --------- Run | Yrd Mat Sub Machines Accessed 9 | . 9 . Terminals 7 | . 7 . Fabricators . | . . . Repair Stations . | . . . Recycling Units 2 | . 2 . Scanalyzers . | . . . Garrison Access . | . . . Total Hacks 25 | . 25 . Successful 13 | . 13 . Failed 12 | . 12 . Catastrophic . | . . . Database Lockouts . | . . . Manual 19 | . 19 . Terminals 19 | . 19 . Fabricators . | . . . Repair Stations . | . . . Recycling Units 6 | . 6 . Scanalyzers . | . . . Garrison Access . | . . . Terminal Hacks . | . . . Fabricator Hacks . | . . . Repair Station Hacks . | . . . Recycling Unit Hacks 3 | . 3 . Process 1 | . 1 . Report Inventory 1 | . 1 . Retrieve Matter 1 | . 1 . Scanalyzer . | . . . Garrison Access Hacks . | . . . Unauthorized Hacks 10 | . 10 . Terminals 10 | . 10 . Assimilate 1 | . 1 . Botnet 3 | . 3 . Operators 1 | . 1 . Skim 5 | . 5 . Fabricators . | . . . Repair Stations . | . . . Recycling Units . | . . . Scanalyzers . | . . . Garrison Access . | . . . Data Cores Recovered . | . . . Used . | . . . Hacking Detections 9 | . 9 . Full Trace Events . | . . . Feedback Events . | . . . Feedback Blocked . | . . . Robot Schematics Acquired . | . . . Robots Built . | . . . Authchips . | . . . Time . | . . . Total Robot Build Rating . | . . . Part Schematics Acquired . | . . . Parts Built . | . . . Authchips . | . . . Time . | . . . Total Part Build Rating . | . . . Part Studies Acquired . | . . . Parts Repaired . | . . . Time . | . . . Parts Recycled . | . . . Recycled Matter 9 | . 9 . Retrieved Matter 9 | . 9 . Retrieved Components . | . . . Parts Scanalyzed . | . . . Part Schematics Acquired . | . . . Parts Damaged . | . . . Bothacking | -11 -10 -10 ------------ Run | Yrd Mat Sub Used RIF Installer . | . . . Robots Hacked . | . . . Non-combat . | . . . Combat . | . . . Robot Hacks Applied . | . . . Relay Couplers Released . | . . . Fabnet Peak Effective % . | . . . Robots Rewired . | . . . Allies Hacked . | . . . Hacks Repelled . | . . . Allies | -11 -10 -10 -------- Run | Yrd Mat Sub Total Allies 1 | . 1 . Largest Group 1 | . 1 . Highest-Rated Group 10 | . 10 . Highest-Rated Ally 10 | . 10 . Total Orders . | . . . Ally Attacks . | . . . Total Damage . | . . . Kills . | . . . Allies Corrupted . | . . . Allies Melted . | . . . Intel | -11 -10 -10 ------- Run | Yrd Mat Sub Active Infowar (turns) 1939 | 44 1760 135 Optics 1369 | . 1356 13 Seismic 570 | 44 404 122 Robot Analysis Total . | . . . Derelict Logs Recovered 1 | . . 1 Drone Launches . | . . . Drone Recoveries . | . . . Exploration | -11 -10 -10 ------------- Run | Yrd Mat Sub Turns Passed 2047 | 134 1760 153 Spaces Moved 842 | 55 712 75 Core 9 | 6 . 3 Treads 833 | 49 712 72 Legs . | . . . Wheels . | . . . Hover . | . . . Flight . | . . . Fastest Speed 50 | 50 160 160 Average Speed 160 | 148 160 172 Slowest Speed 550 | 160 160 550 Overloaded Moves . | . . . Propulsion Burnouts . | . . . Robots Hopped . | . . . Potential Cave-ins . | . . . Cave-ins Triggered . | . . . Exploration Rate (%) 37 | 4 99 10 Regions Visited 2 Branch Regions 1 Pre-discovered Areas 2 | . 1 1 Known Exits Taken 1 | . 1 . Unknown Exits Taken 1 | 1 . . Scrap Searched . | . . . Spaces Dug 5 | . 5 . Terrain Destroyed 5 | . 5 . Melee 1 | . 1 . Projectile 4 | . 4 . AOE . | . . . Terrain Rammed . | . . . Walls Destroyed . | . . . Machines Disabled . | . . . Actions | -11 -10 -10 --------- Run | Yrd Mat Sub Total 1410 | 87 1237 86 Wait 456 | 12 444 . Move 840 | 54 711 75 Hop . | . . . Pick Up 15 | 5 10 . Fast Attach 9 | 7 2 . Attach . | . . . Detach 2 | . 2 . Swap 13 | 1 8 4 Drop 10 | . 10 . Fire 55 | 8 47 . Melee 9 | . 2 7 Ram . | . . . Kick . | . . . Crush 1 | . 1 . Escape Stasis . | . . . Rewire . | . . . Trap . | . . . Miscellaneous . | . . . Route ------- -11/Scrapyard -10/Materials (discovered 5 exits: *Mat x3 / *Min / *Sub) -10/Subcaves History --------- Turn | Location | Event 5 | -11/Scrapyard | Discovered new exit (range 15) 135 | -11/Scrapyard | Entered Materials 324 | -10/Materials | Build established: Mutant 996 | -10/Materials | Discovered new exit (range 18) 1038 | -10/Materials | Learned location of 1 exit from Recycling 1109 | -10/Materials | Identified exit to Subcaves 1109 | -10/Materials | Identified exit to Materials 1125 | -10/Materials | Discovered exit to Materials (range 15) 1168 | -10/Materials | Learned 2 Mines zone layouts 1216 | -10/Materials | Learned Storage terminal intel 1253 | -10/Materials | Learned Storage security intel 1282 | -10/Materials | Learned location of Subcaves (-10) 1362 | -10/Materials | Identified exit to Mines 1411 | -10/Materials | Learned Storage trap positions 1470 | -10/Materials | Learned Storage garrison access intel 1895 | -10/Materials | Entered Subcaves 1983 | -10/Subcaves | Learned location of Mines (-10) 2015 | -10/Subcaves | A Subdweller sparked back to life 2015 | -10/Subcaves | A Subdweller sparked back to life 2026 | -10/Subcaves | Core integrity fell below 50% 2039 | -10/Subcaves | Core integrity fell below 20% 2048 | -10/Subcaves | Destroyed by FV-5G7(R) with Subdweller Laser Last Messages --------------- GOAL=ESCAPE 01908_ Discarded Visual Processing Unit. 01916_ Acquired 9 matter. 01924_ Acquired 15 matter. 01935_ Acquired 14 matter. 01983_ Acquired derelict log, extracted data. World map updated: -10/Mines. 02015_ Sneak attack on 88-ROU(R). 02015_ 88-ROU(R) creaks and sparks as it begins to move. 02015_ FV-5G7(R) creaks and sparks as it begins to move. 02017_ Lgt. Treads destroyed. 02021_ Critical hit (Destroy). 02021_ Lgt. Treads destroyed. 02031_ FV-5G7(R) affixes Scrap Shield Fragment to Scrap Shield. 02035_ Grenade Launcher destroyed. 02042_ Lgt. Ion Engine destroyed. 02046_ Lgt. Armor Plating destroyed. Map ----- +----------------------------------------------------+ | | | | | | | | | | | | | | | | | ?????????????????????????????????????????????????? | | ?????????????????????????????????????????????????? | | ?????????????????????????????????????????????????? | | ?????????????????????????????????????????????????? | | ?????????????????????????????????????????????????? | | ?????????????????????????????????????????????????? | | ?????????????????????????????????????????????????? | | ?????????????????????????????????????????????????? | | ?????????????????????????????????????????????????? | | ?????????????????????????????????????????????????? | | ?????????????????????????????????????????????????? | | ?????????????????????????????????????????????????? | | ?????????????????????????????????????????????????? | | ?????????????????????????????????????????????????? | | ????????????????????##????????????????#????##????? | | ????????????????????# ############ #???# ##???? | | ???????????????????## # ### ##??? | | ???????? ???#?##?# < R @ R ### #??? | | ??????? # # ## # R #??? | | ??????? #??###### ????? | | ????????? # #????????? #?????? | | ??????????????###### <######?????? #??????? | | ???????????????????## ####### ##??? | | ???????????????????## # ## #??? | | ???????????????????# ### # #??? | | ???????????????????# ## #??? | | ???????????????????## ### # # ## ## #???? | | ???????????????????# ######### # ##??? | | ???????????????????## #????### ### #??? | | ????????????????????# #??## ### #??# | | ????????????????????# ## ### ###?# | | ????????????????????## ### | | ?????????????????????####### ## ## | | ???????????????????????????####### ## | | ?????????????????????????????????# #? | | ?????????????????????????????????# #? | | ?????????????????????????????????## ### #? | | ??????????????????????????????????## ##?# #? | | ???????????????????????????????????####?## #? | | ????????????????????????????????????????# ## | | ????????????????????????????????????????## # | | ?????????????????????????????????????????## | +----------------------------------------------------+ Best States ------------- Heat Dissipation 25 Energy Generation 10 Energy Capacity 250 Matter Stores 300 Matter Capacity 300 Sight Range 18 Terrain Scan Density 10 Armor Coverage 150 Evasion (%) 40 Recoil Reduction 2 Item Schematics ----------------- None Robot Schematics ------------------ None Fabricated ------------ Nothing Repaired ---------- Nothing Studied --------- None Alien Tech Used ----------------- None Achievements -------------- None Challenges ------------ None Game ------ Seed TachyonMobileJetlance Manual? 0 Play Time 00:20:20 Cumulative 32.5 hours Start 2026.08.13 @ 19:11:52 End 2026.08.13 @ 19:30:47 Sessions 1 Manual Loads 0 Difficulty Rogue Special Mode None Game No. 19 Rogue 19 Adventurer 0 Explorer 0 Win Type - Total 0 Types 0/0/0/0/0/0/0/0/0/0 Lore% 30 Gallery% 21 Achievement% 27 Wizard Run 0 Options --------- Layout 1 ASCII 0 Keyboard 0 Movement Mouse Keybinds 0 Fullscreen 1 Font 24/Smallcaps Map View 50x35 Zoom Use 0% Tactical HUD 1 Map Filters NONE Filters NONE Steam 1 RUN: 433aca59-ec0e-46de-80f2-1200a1ffe3c2